[Event "Early-Titled-Tuesday-Blitz-October-24-2023"]
[Site "Chess.com"]
[Date "2023.10.24"]
[Round "6"]
[White "seopie"]
[Black "pedro_gines"]
[Result "1-0"]
[WhiteElo "2916"]
[BlackElo "2742"]
[TimeControl "180+1"]
[EndTime "9:05:55 PDT"]
[Termination "seopie won by resignation"]

1. d4 {[%clk 0:03:00.9]} 1... Nf6 {[%clk 0:02:57.3]} 2. c4 {[%clk 0:03:00.8]}
2... e6 {[%clk 0:02:57.3]} 3. Nf3 {[%clk 0:03:01.2]} 3... a6 {[%clk 0:02:57.4]}
4. Nc3 {[%clk 0:02:58]} 4... d5 {[%clk 0:02:57.7]} 5. cxd5 {[%clk 0:02:57.9]}
5... exd5 {[%clk 0:02:58.6]} 6. Bg5 {[%clk 0:02:57.8]} 6... Be6 {[%clk
0:02:57.5]} 7. e3 {[%clk 0:02:54.2]} 7... Nbd7 {[%clk 0:02:55.9]} 8. Bd3 {[%clk
0:02:53.9]} 8... h6 {[%clk 0:02:55.8]} 9. Bf4 {[%clk 0:02:50.6]} 9... Nh5 {[%clk
0:02:50.6]} 10. Be5 {[%clk 0:02:49.9]} 10... Nhf6 {[%clk 0:02:44.4]} 11. Bg3
{[%clk 0:02:49]} 11... Nh5 {[%clk 0:02:44.1]} 12. Bh4 {[%clk 0:02:34.1]} 12...
g5 {[%clk 0:02:40.5]} 13. Bg3 {[%clk 0:02:34.2]} 13... Nxg3 {[%clk 0:02:38.4]}
14. hxg3 {[%clk 0:02:34.4]} 14... Bg7 {[%clk 0:02:35.7]} 15. Qc2 {[%clk
0:02:34]} 15... c5 {[%clk 0:02:31.4]} 16. dxc5 {[%clk 0:02:33.9]} 16... Nxc5
{[%clk 0:02:31.8]} 17. O-O {[%clk 0:02:31]} 17... h5 {[%clk 0:02:31.3]} 18. Bf5
{[%clk 0:02:29.6]} 18... Rc8 {[%clk 0:02:20.8]} 19. Bxe6 {[%clk 0:02:27]} 19...
Nxe6 {[%clk 0:02:20.5]} 20. Rad1 {[%clk 0:02:21.3]} 20... Bxc3 {[%clk
0:02:18.9]} 21. bxc3 {[%clk 0:02:20.2]} 21... g4 {[%clk 0:00:59.1]} 22. Nh4
{[%clk 0:02:12.2]} 22... Qg5 {[%clk 0:00:50.7]} 23. Qb3 {[%clk 0:02:09.3]} 23...
Rc5 {[%clk 0:00:33.2]} 24. Qxb7 {[%clk 0:02:08]} 24... O-O {[%clk 0:00:33.8]}
25. Qxa6 {[%clk 0:02:06.8]} 25... Qe5 {[%clk 0:00:31.3]} 26. Rc1 {[%clk
0:02:01.3]} 26... Rfc8 {[%clk 0:00:30.9]} 27. Rfd1 {[%clk 0:01:57.8]} 27... Rxc3
{[%clk 0:00:27.8]} 28. Rxc3 {[%clk 0:01:57.5]} 28... Rxc3 {[%clk 0:00:25.3]} 29.
Qa8+ {[%clk 0:01:42.7]} 29... Kg7 {[%clk 0:00:25.4]} 30. Qxd5 {[%clk 0:01:29.1]}
30... Qxd5 {[%clk 0:00:25.2]} 31. Rxd5 {[%clk 0:01:29.1]} 31... Rc1+ {[%clk
0:00:25.5]} 32. Kh2 {[%clk 0:01:29.5]} 32... Rc2 {[%clk 0:00:26.4]} 33. Kg1
{[%clk 0:01:04.1]} 33... Rc1+ {[%clk 0:00:25.7]} 34. Kh2 {[%clk 0:01:04.3]}
34... Rc2 {[%clk 0:00:26.6]} 35. Rxh5 {[%clk 0:00:54]} 35... Rxf2 {[%clk
0:00:26.2]} 36. a4 {[%clk 0:00:51.6]} 36... Ra2 {[%clk 0:00:23.6]} 37. a5 {[%clk
0:00:50.5]} 37... Kf6 {[%clk 0:00:16.7]} 38. Rb5 {[%clk 0:00:48.2]} 38... Ra3
{[%clk 0:00:09.3]} 39. e4 {[%clk 0:00:48]} 39... Ra4 {[%clk 0:00:08.1]} 40. e5+
{[%clk 0:00:48.2]} 40... Kg5 {[%clk 0:00:08.3]} 41. Rb7 {[%clk 0:00:40.9]} 41...
Rxa5 {[%clk 0:00:08.4]} 42. Rxf7 {[%clk 0:00:40]} 42... Rxe5 {[%clk 0:00:09.1]}
43. Re7 {[%clk 0:00:38.7]} 43... Kf6 {[%clk 0:00:08.5]} 44. Ra7 {[%clk
0:00:37.7]} 44... Re4 {[%clk 0:00:07.2]} 45. Ra5 {[%clk 0:00:35]} 45... Rb4
{[%clk 0:00:06.4]} 46. Rf5+ {[%clk 0:00:34.6]} 46... Kg7 {[%clk 0:00:06.1]} 47.
Rf1 {[%clk 0:00:33]} 47... Ng5 {[%clk 0:00:03.8]} 48. Rf4 {[%clk 0:00:30]} 48...
Re4 {[%clk 0:00:02.7]} 49. Kg1 {[%clk 0:00:22.5]} 49... Kh6 {[%clk 0:00:02.5]}
50. Kf2 {[%clk 0:00:20.4]} 50... Kg7 {[%clk 0:00:02.9]} 51. Nf5+ {[%clk
0:00:19.7]} 51... Kg6 {[%clk 0:00:03]} 52. Ne3 {[%clk 0:00:19.9]} 52... Re8
{[%clk 0:00:02.1]} 53. Rxg4 {[%clk 0:00:18.6]} 53... Kh5 {[%clk 0:00:02.4]} 54.
Rh4+ {[%clk 0:00:18]} 54... Kg6 {[%clk 0:00:02.7]} 55. Nd5 {[%clk 0:00:12.6]}
55... Ne4+ {[%clk 0:00:02.9]} 56. Kf3 {[%clk 0:00:12.9]} 56... Ng5+ {[%clk
0:00:03.2]} 57. Kg4 {[%clk 0:00:13.2]} 57... Re4+ {[%clk 0:00:03.1]} 58. Nf4+
{[%clk 0:00:13.7]} 58... Kf6 {[%clk 0:00:02.5]} 59. Rh6+ {[%clk 0:00:13.9]}
59... Kg7 {[%clk 0:00:03.3]} 60. Rg6+ {[%clk 0:00:12.7]} 1-0

[Event "Early-Titled-Tuesday-Blitz-October-24-2023"]
[Site "Chess.com"]
[Date "2023.10.24"]
[Round "6"]
[White "Resignify"]
[Black "Millerkallpa"]
[Result "1-0"]
[WhiteElo "2300"]
[BlackElo "2036"]
[TimeControl "180+1"]
[EndTime "9:06:12 PDT"]
[Termination "Resignify won by checkmate"]

1. e4 {[%clk 0:03:00.9]} 1... e5 {[%clk 0:02:59.4]} 2. Nf3 {[%clk 0:03:00.4]}
2... Nc6 {[%clk 0:02:59.4]} 3. Bb5 {[%clk 0:03:00.5]} 3... a6 {[%clk 0:02:59.2]}
4. Ba4 {[%clk 0:03:00.5]} 4... Nf6 {[%clk 0:02:59]} 5. O-O {[%clk 0:03:00.1]}
5... Be7 {[%clk 0:02:58.1]} 6. Re1 {[%clk 0:02:59.7]} 6... b5 {[%clk 0:02:58]}
7. Bb3 {[%clk 0:02:59.6]} 7... O-O {[%clk 0:02:57.9]} 8. c3 {[%clk 0:02:59.6]}
8... d6 {[%clk 0:02:56.4]} 9. d3 {[%clk 0:02:58.1]} 9... Na5 {[%clk 0:02:54.2]}
10. Bc2 {[%clk 0:02:58]} 10... c5 {[%clk 0:02:54.4]} 11. Nbd2 {[%clk 0:02:58]}
11... Re8 {[%clk 0:02:52.5]} 12. Nf1 {[%clk 0:02:57.9]} 12... Bf8 {[%clk
0:02:51.2]} 13. a4 {[%clk 0:02:55.2]} 13... Be6 {[%clk 0:02:48]} 14. Ne3 {[%clk
0:02:45.7]} 14... h6 {[%clk 0:02:46.8]} 15. Nf5 {[%clk 0:02:30.5]} 15... Nc6
{[%clk 0:02:43.6]} 16. axb5 {[%clk 0:02:17.4]} 16... axb5 {[%clk 0:02:44.5]} 17.
Rxa8 {[%clk 0:02:17.4]} 17... Qxa8 {[%clk 0:02:44.6]} 18. Bb3 {[%clk 0:02:13.9]}
18... d5 {[%clk 0:02:28.8]} 19. exd5 {[%clk 0:02:11.8]} 19... Bxd5 {[%clk
0:02:06.1]} 20. Bxd5 {[%clk 0:02:07.5]} 20... Nxd5 {[%clk 0:02:07]} 21. Qb3
{[%clk 0:02:04.7]} 21... Nc7 {[%clk 0:01:48.9]} 22. h3 {[%clk 0:01:57.4]} 22...
Qc8 {[%clk 0:00:42.1]} 23. Ng3 {[%clk 0:01:46.9]} 23... Qe6 {[%clk 0:00:36.2]}
24. Qc2 {[%clk 0:01:39.6]} 24... Nd5 {[%clk 0:00:35.1]} 25. Ne4 {[%clk
0:01:37.1]} 25... f5 {[%clk 0:00:33.4]} 26. Ng3 {[%clk 0:01:36]} 26... Qd7
{[%clk 0:00:30.8]} 27. Qb3 {[%clk 0:01:30.6]} 27... Kh8 {[%clk 0:00:26.8]} 28.
Qxb5 {[%clk 0:01:18.8]} 28... Nf4 {[%clk 0:00:26.6]} 29. Nxf5 {[%clk 0:00:49.4]}
29... Qxf5 {[%clk 0:00:23.9]} 30. Qxc6 {[%clk 0:00:47.8]} 30... Re6 {[%clk
0:00:21.7]} 31. Qe4 {[%clk 0:00:46.3]} 31... Qxe4 {[%clk 0:00:17.1]} 32. dxe4
{[%clk 0:00:46.5]} 32... Nd3 {[%clk 0:00:17.3]} 33. Rd1 {[%clk 0:00:45.5]} 33...
c4 {[%clk 0:00:17.6]} 34. Ne1 {[%clk 0:00:40.1]} 34... Nxc1 {[%clk 0:00:15.8]}
35. Rxc1 {[%clk 0:00:40.4]} 35... Rd6 {[%clk 0:00:16.7]} 36. Kf1 {[%clk
0:00:38.9]} 36... Rd2 {[%clk 0:00:16.7]} 37. Rc2 {[%clk 0:00:38.9]} 37... Rd1
{[%clk 0:00:16.3]} 38. Ke2 {[%clk 0:00:39.5]} 38... Rb1 {[%clk 0:00:17]} 39. Nf3
{[%clk 0:00:32.8]} 39... Bc5 {[%clk 0:00:17.2]} 40. Nxe5 {[%clk 0:00:29]} 40...
Bd6 {[%clk 0:00:17.5]} 41. Nxc4 {[%clk 0:00:28.3]} 41... Bf4 {[%clk 0:00:17.2]}
42. Nd2 {[%clk 0:00:24.6]} 42... Bg5 {[%clk 0:00:17.3]} 43. g3 {[%clk 0:00:24]}
43... Rh1 {[%clk 0:00:15.6]} 44. f4 {[%clk 0:00:21.8]} 44... Bf6 {[%clk
0:00:16.5]} 45. h4 {[%clk 0:00:21.5]} 45... Rh2+ {[%clk 0:00:12.6]} 46. Kf3
{[%clk 0:00:16.8]} 46... Rh1 {[%clk 0:00:12.3]} 47. e5 {[%clk 0:00:16.9]} 47...
Be7 {[%clk 0:00:12.2]} 48. Ne4 {[%clk 0:00:15.9]} 48... Ra1 {[%clk 0:00:12.1]}
49. b4 {[%clk 0:00:16]} 49... Ra3 {[%clk 0:00:11.9]} 50. Ke2 {[%clk 0:00:15.1]}
50... Rb3 {[%clk 0:00:11.7]} 51. Nd2 {[%clk 0:00:13.7]} 51... Rb1 {[%clk
0:00:12.6]} 52. Kd3 {[%clk 0:00:13.6]} 52... Ra1 {[%clk 0:00:12.6]} 53. Ne4
{[%clk 0:00:13.7]} 53... Ra8 {[%clk 0:00:13.1]} 54. Kd4 {[%clk 0:00:13.3]} 54...
Kg8 {[%clk 0:00:13.3]} 55. b5 {[%clk 0:00:12.1]} 55... Rb8 {[%clk 0:00:13.7]}
56. c4 {[%clk 0:00:12.2]} 56... Bd8 {[%clk 0:00:14]} 57. Nd6 {[%clk 0:00:12.2]}
57... Ba5 {[%clk 0:00:14.9]} 58. Kd5 {[%clk 0:00:11.3]} 58... Kf8 {[%clk
0:00:14.6]} 59. c5 {[%clk 0:00:11.4]} 59... Ke7 {[%clk 0:00:14.9]} 60. b6 {[%clk
0:00:08.9]} 60... Bb4 {[%clk 0:00:12.3]} 61. Rb2 {[%clk 0:00:07.6]} 61... Ba5
{[%clk 0:00:12.1]} 62. Rb5 {[%clk 0:00:07.5]} 62... Bd2 {[%clk 0:00:11.4]} 63.
c6 {[%clk 0:00:07.6]} 63... Be3 {[%clk 0:00:11]} 64. c7 {[%clk 0:00:07.4]} 64...
Ra8 {[%clk 0:00:10.7]} 65. c8=Q {[%clk 0:00:07]} 65... Rxc8 {[%clk 0:00:10.7]}
66. Nxc8+ {[%clk 0:00:07.9]} 66... Kd7 {[%clk 0:00:11.1]} 67. b7 {[%clk
0:00:07.4]} 67... Bf2 {[%clk 0:00:11.2]} 68. b8=Q {[%clk 0:00:07.7]} 68... Bxg3
{[%clk 0:00:11.1]} 69. Qd6+ {[%clk 0:00:07.8]} 69... Ke8 {[%clk 0:00:10.7]} 70.
Qe7# {[%clk 0:00:08.2]} 1-0

[Event "Early-Titled-Tuesday-Blitz-October-24-2023"]
[Site "Chess.com"]
[Date "2023.10.24"]
[Round "6"]
[White "verrbaa"]
[Black "rajesh1464"]
[Result "1-0"]
[WhiteElo "2441"]
[BlackElo "2299"]
[TimeControl "180+1"]
[EndTime "9:06:15 PDT"]
[Termination "verrbaa won on time"]

1. Nf3 {[%clk 0:03:00.9]} 1... Nf6 {[%clk 0:02:58.7]} 2. c4 {[%clk 0:03:00.5]}
2... g6 {[%clk 0:02:58.9]} 3. Nc3 {[%clk 0:02:56]} 3... Bg7 {[%clk 0:02:58.5]}
4. e4 {[%clk 0:02:55.6]} 4... d6 {[%clk 0:02:59.2]} 5. d4 {[%clk 0:02:56.1]}
5... Bg4 {[%clk 0:02:58.4]} 6. Be2 {[%clk 0:02:38]} 6... O-O {[%clk 0:02:40.1]}
7. Be3 {[%clk 0:02:23.2]} 7... Nfd7 {[%clk 0:02:32.8]} 8. h3 {[%clk 0:01:58.2]}
8... Bxf3 {[%clk 0:02:32]} 9. Bxf3 {[%clk 0:01:59.1]} 9... c5 {[%clk 0:02:31.6]}
10. d5 {[%clk 0:01:58]} 10... Na6 {[%clk 0:02:31.1]} 11. O-O {[%clk 0:01:57.1]}
11... Nc7 {[%clk 0:02:30.7]} 12. Be2 {[%clk 0:01:46.6]} 12... a6 {[%clk
0:02:28.2]} 13. Qc2 {[%clk 0:01:45.6]} 13... Rb8 {[%clk 0:02:27.2]} 14. a4
{[%clk 0:01:44.1]} 14... e5 {[%clk 0:02:12.8]} 15. a5 {[%clk 0:01:34.2]} 15...
f5 {[%clk 0:02:08.7]} 16. exf5 {[%clk 0:01:29.4]} 16... gxf5 {[%clk 0:02:08]}
17. f4 {[%clk 0:01:29.7]} 17... Ne8 {[%clk 0:01:48.8]} 18. fxe5 {[%clk
0:01:26.2]} 18... Nxe5 {[%clk 0:01:32.3]} 19. Rxf5 {[%clk 0:01:25.6]} 19... Nf6
{[%clk 0:01:17.1]} 20. Raf1 {[%clk 0:01:24.1]} 20... Qe7 {[%clk 0:01:15.1]} 21.
Bg5 {[%clk 0:01:20.1]} 21... h6 {[%clk 0:01:08.4]} 22. Bh4 {[%clk 0:01:06.6]}
22... Ned7 {[%clk 0:00:41.4]} 23. Bd3 {[%clk 0:00:58.4]} 23... Qe3+ {[%clk
0:00:34.8]} 24. Bf2 {[%clk 0:00:54.5]} 24... Qe7 {[%clk 0:00:32.5]} 25. Bg3
{[%clk 0:00:47.6]} 25... Qe3+ {[%clk 0:00:31.1]} 26. Kh2 {[%clk 0:00:47.8]}
26... Ne8 {[%clk 0:00:16.7]} 27. Rxf8+ {[%clk 0:00:40.9]} 27... Nxf8 {[%clk
0:00:16.6]} 28. Ne4 {[%clk 0:00:33.7]} 28... Rd8 {[%clk 0:00:14]} 29. Rf3 {[%clk
0:00:17.2]} 29... Qd4 {[%clk 0:00:12.8]} 30. b3 {[%clk 0:00:12.5]} 30... Rd7
{[%clk 0:00:11.8]} 31. Qf2 {[%clk 0:00:09.4]} 31... Be5 {[%clk 0:00:08.8]} 32.
Qxd4 {[%clk 0:00:09.2]} 32... Bxd4 {[%clk 0:00:08.3]} 33. Bf4 {[%clk 0:00:07]}
33... Bg7 {[%clk 0:00:07.8]} 34. Rg3 {[%clk 0:00:07.5]} 34... Kh8 {[%clk
0:00:07.3]} 35. Nf2 {[%clk 0:00:07.2]} 35... Rf7 {[%clk 0:00:07.6]} 36. Be3
{[%clk 0:00:07.3]} 36... Nd7 {[%clk 0:00:06.9]} 37. Rf3 {[%clk 0:00:07.3]} 37...
Rxf3 {[%clk 0:00:06.8]} 38. gxf3 {[%clk 0:00:07.3]} 38... Bc3 {[%clk 0:00:07]}
39. Ne4 {[%clk 0:00:07.1]} 39... Bxa5 {[%clk 0:00:06.3]} 40. Bxh6 {[%clk
0:00:07.1]} 40... b5 {[%clk 0:00:05.2]} 41. Bf4 {[%clk 0:00:06.3]} 41... bxc4
{[%clk 0:00:04.8]} 42. Bxc4 {[%clk 0:00:06.7]} 42... Bc7 {[%clk 0:00:04.9]} 43.
Kg3 {[%clk 0:00:06.2]} 43... a5 {[%clk 0:00:04.7]} 44. h4 {[%clk 0:00:05.7]}
44... Nef6 {[%clk 0:00:04.6]} 45. Nxf6 {[%clk 0:00:05.5]} 45... Nxf6 {[%clk
0:00:04.9]} 46. Bg5 {[%clk 0:00:05]} 46... Kg7 {[%clk 0:00:04.9]} 47. Kf4 {[%clk
0:00:03.7]} 47... Nh5+ {[%clk 0:00:04.6]} 48. Kf5 {[%clk 0:00:03.3]} 48... Ng3+
{[%clk 0:00:04.3]} 49. Kg4 {[%clk 0:00:03.5]} 49... Nh1 {[%clk 0:00:02.9]} 50.
Be3 {[%clk 0:00:02.8]} 50... Bd8 {[%clk 0:00:01.2]} 51. Kh3 {[%clk 0:00:02.7]}
51... Bf6 {[%clk 0:00:01.1]} 52. Kg2 {[%clk 0:00:03]} 52... Bd4 {[%clk
0:00:01.2]} 53. Bxd4+ {[%clk 0:00:03.1]} 53... cxd4 {[%clk 0:00:02.1]} 54. Kxh1
{[%clk 0:00:03.6]} 54... Kf6 {[%clk 0:00:01.8]} 55. Kg2 {[%clk 0:00:04.1]} 55...
Kf5 {[%clk 0:00:02.2]} 56. Kf2 {[%clk 0:00:04.5]} 56... Kf4 {[%clk 0:00:02.4]}
57. Bd3 {[%clk 0:00:04.6]} 1-0

[Event "Early-Titled-Tuesday-Blitz-October-24-2023"]
[Site "Chess.com"]
[Date "2023.10.24"]
[Round "6"]
[White "meoluoi91"]
[Black "Flaccidmoves"]
[Result "1/2-1/2"]
[WhiteElo "2593"]
[BlackElo "2424"]
[TimeControl "180+1"]
[EndTime "9:06:28 PDT"]
[Termination "Game drawn by repetition"]

1. d4 {[%clk 0:03:00.9]} 1... Nf6 {[%clk 0:02:58.9]} 2. Nf3 {[%clk 0:03:00]}
2... g6 {[%clk 0:02:59.3]} 3. g3 {[%clk 0:03:00]} 3... Bg7 {[%clk 0:02:59.7]} 4.
Bg2 {[%clk 0:03:00.9]} 4... O-O {[%clk 0:03:00.2]} 5. O-O {[%clk 0:03:01.3]}
5... d6 {[%clk 0:03:00.8]} 6. Re1 {[%clk 0:03:01.6]} 6... Nc6 {[%clk 0:03:01.3]}
7. d5 {[%clk 0:02:56.7]} 7... Nb8 {[%clk 0:02:59.4]} 8. c4 {[%clk 0:02:56.6]}
8... c6 {[%clk 0:02:54.5]} 9. Nc3 {[%clk 0:02:56]} 9... cxd5 {[%clk 0:02:52.7]}
10. cxd5 {[%clk 0:02:56.9]} 10... Na6 {[%clk 0:02:49.6]} 11. Nd4 {[%clk
0:02:55.7]} 11... Bd7 {[%clk 0:02:43.9]} 12. b3 {[%clk 0:02:39.7]} 12... Rc8
{[%clk 0:02:43.3]} 13. Bb2 {[%clk 0:02:39.9]} 13... Qb6 {[%clk 0:02:24.3]} 14.
e3 {[%clk 0:02:35.8]} 14... Rc7 {[%clk 0:02:13.3]} 15. Qd2 {[%clk 0:02:21.8]}
15... Rfc8 {[%clk 0:02:12.5]} 16. Rac1 {[%clk 0:02:17.1]} 16... Nc5 {[%clk
0:01:59.9]} 17. h3 {[%clk 0:02:11]} 17... a5 {[%clk 0:01:55.6]} 18. Ba1 {[%clk
0:01:56.6]} 18... Qb4 {[%clk 0:01:40.5]} 19. Rc2 {[%clk 0:01:36.2]} 19... a4
{[%clk 0:01:38.5]} 20. Rb1 {[%clk 0:01:13.1]} 20... axb3 {[%clk 0:01:24.2]} 21.
axb3 {[%clk 0:01:14]} 21... Ra8 {[%clk 0:01:01.5]} 22. Ncb5 {[%clk 0:01:05.1]}
22... Qxd2 {[%clk 0:00:57.7]} 23. Rxd2 {[%clk 0:01:06]} 23... Rcc8 {[%clk
0:00:57.3]} 24. Kh2 {[%clk 0:00:50.6]} 24... Nfe4 {[%clk 0:00:53.7]} 25. Rdd1
{[%clk 0:00:29.3]} 25... Nxf2 {[%clk 0:00:53.2]} 26. Rf1 {[%clk 0:00:27.4]}
26... Ncd3 {[%clk 0:00:48.6]} 27. Bf3 {[%clk 0:00:18]} 27... Ra2 {[%clk
0:00:47.6]} 28. Bg2 {[%clk 0:00:15.8]} 28... Nxh3 {[%clk 0:00:39.7]} 29. Nc3
{[%clk 0:00:10.2]} 29... Rf2 {[%clk 0:00:30.3]} 30. Ne4 {[%clk 0:00:10.5]} 30...
Rxf1 {[%clk 0:00:29.9]} 31. Rxf1 {[%clk 0:00:11.2]} 31... Ne5 {[%clk 0:00:21.3]}
32. Bxh3 {[%clk 0:00:10.9]} 32... Ng4+ {[%clk 0:00:21.9]} 33. Bxg4 {[%clk
0:00:10.8]} 33... Bxg4 {[%clk 0:00:22.8]} 34. Rf2 {[%clk 0:00:10.6]} 34... Ra8
{[%clk 0:00:21.4]} 35. Bb2 {[%clk 0:00:10.8]} 35... Ra2 {[%clk 0:00:21.5]} 36.
Bc3 {[%clk 0:00:10.6]} 36... Rxf2+ {[%clk 0:00:20]} 37. Nxf2 {[%clk 0:00:11.5]}
37... Bd7 {[%clk 0:00:18.9]} 38. Ne2 {[%clk 0:00:11.5]} 38... Bh6 {[%clk
0:00:15.3]} 39. Bd4 {[%clk 0:00:11.4]} 39... e6 {[%clk 0:00:15.1]} 40. Nc3
{[%clk 0:00:11]} 40... e5 {[%clk 0:00:13.1]} 41. Bb6 {[%clk 0:00:11.2]} 41... f5
{[%clk 0:00:13.3]} 42. Bc7 {[%clk 0:00:11.2]} 42... Bf8 {[%clk 0:00:13.9]} 43.
g4 {[%clk 0:00:11.3]} 43... Kf7 {[%clk 0:00:12.4]} 44. gxf5 {[%clk 0:00:11.4]}
44... gxf5 {[%clk 0:00:12.6]} 45. Nd3 {[%clk 0:00:11.6]} 45... Kf6 {[%clk
0:00:12.3]} 46. Nf2 {[%clk 0:00:11.5]} 46... Kg5 {[%clk 0:00:12.5]} 47. Kg3
{[%clk 0:00:11.1]} 47... h5 {[%clk 0:00:12.1]} 48. Nh3+ {[%clk 0:00:11.5]} 48...
Kg6 {[%clk 0:00:12.5]} 49. e4 {[%clk 0:00:11.2]} 49... f4+ {[%clk 0:00:12.4]}
50. Kg2 {[%clk 0:00:11.7]} 50... Be7 {[%clk 0:00:12.4]} 51. b4 {[%clk
0:00:10.7]} 51... Kf7 {[%clk 0:00:08.5]} 52. b5 {[%clk 0:00:10.7]} 52... Kg6
{[%clk 0:00:07.8]} 53. b6 {[%clk 0:00:11.1]} 53... Kf7 {[%clk 0:00:07.9]} 54.
Nd1 {[%clk 0:00:11.5]} 54... Kg6 {[%clk 0:00:06.2]} 55. Ndf2 {[%clk 0:00:12]}
55... Bb5 {[%clk 0:00:06.6]} 56. Ng1 {[%clk 0:00:12.1]} 56... h4 {[%clk
0:00:06]} 57. Nf3 {[%clk 0:00:12.3]} 57... Kh5 {[%clk 0:00:05.9]} 58. Ne1 {[%clk
0:00:10.9]} 58... Be2 {[%clk 0:00:04.6]} 59. Nh3 {[%clk 0:00:09.5]} 59... Kg4
{[%clk 0:00:04.3]} 60. Ng1 {[%clk 0:00:08.6]} 60... Bd1 {[%clk 0:00:03.9]} 61.
Kf2 {[%clk 0:00:08.4]} 61... h3 {[%clk 0:00:04]} 62. Ngf3 {[%clk 0:00:08.8]}
62... Bh4+ {[%clk 0:00:02.3]} 63. Nxh4 {[%clk 0:00:09.2]} 63... Kxh4 {[%clk
0:00:03.2]} 64. Bxd6 {[%clk 0:00:09.1]} 64... h2 {[%clk 0:00:02.5]} 65. Kg2
{[%clk 0:00:09.4]} 65... f3+ {[%clk 0:00:02.8]} 66. Nxf3+ {[%clk 0:00:09]} 66...
Bxf3+ {[%clk 0:00:02.7]} 67. Kxh2 {[%clk 0:00:09.9]} 67... Bxe4 {[%clk
0:00:03.3]} 68. Be7+ {[%clk 0:00:09.4]} 68... Kg4 {[%clk 0:00:03.1]} 69. d6
{[%clk 0:00:10.3]} 69... Bc6 {[%clk 0:00:03.4]} 70. Kg1 {[%clk 0:00:10.3]} 70...
Kf5 {[%clk 0:00:03.9]} 71. Kf2 {[%clk 0:00:10.8]} 71... Ke6 {[%clk 0:00:04.3]}
72. Ke3 {[%clk 0:00:11.3]} 72... Kd5 {[%clk 0:00:04.9]} 73. Kd3 {[%clk
0:00:11.6]} 73... Ke6 {[%clk 0:00:04.5]} 74. Ke3 {[%clk 0:00:11.8]} 74... Bd7
{[%clk 0:00:05]} 75. Kd3 {[%clk 0:00:12]} 75... Bc6 {[%clk 0:00:05.5]} 76. Ke3
{[%clk 0:00:12.4]} 1/2-1/2